Cogmind - Beta 13 @@@ ROGUE MODE // 2024.03.31 @ 19:12:18 Player: Kat Result: Self-destructed Performance ------------- Evolutions (1) 500 Regions Visited (3) 600 Robots Destroyed (23) 115 Value Destroyed (550) 550 Prototype IDs (2) 40 Alien Tech Used (0) 0 Bonus (0) 0 TOTAL SCORE: 1805 Bonus ------- None Cogmind --------- Core Integrity 107/400 Matter 249/300 Energy 280/280 System Corruption 0% Temperature Cool (0) Movement Walking (400) Ox4 Location -9/Storage Parts ------- > --- POWER (1) -------- Cooled Ion Engine > --- PROPULSION (3) --- Aluminum Leg Aluminum Leg > --- UTILITY (3) ------ Huge Storage Unit Visual Processing Unit Visual Processing Unit > --- WEAPON (2) ------- Shotgun > --- INVENTORY (25) --- Ion Engine Heat Sink Cooling System ECM Suite Medium Armor Plating High-powered Tractor Beam Field Recycling Unit (5) Assault Rifle Assault Rifle Shotgun Improved Light Cannon Peak State ------------ > --- POWER ------------ Cooled Ion Engine > --- PROPULSION ------- Light Treads Light Treads Wheel > --- UTILITY ---------- Cooling System Huge Storage Unit Visual Processing Unit > --- WEAPON ----------- Shotgun Shotgun > --- INVENTORY -------- Ion Engine Heat Sink ECM Suite Medium Armor Plating High-powered Tractor Beam Field Recycling Unit Assault Rifle Improved Light Cannon [Rating: 16] Favorites ----------- Power Cooled Ion Engine Engine Cooled Ion Engine Propulsion Wheel Treads Light Treads Leg Aluminum Leg Wheel Wheel Flight Unit VTOL Module Utility Visual Processing Unit Device Cooling System Storage Huge Storage Unit Processor Visual Processing Unit Weapon Shotgun Energy Gun Beam Rifle Ballistic Gun Shotgun Ballistic Cannon Improved Light Cannon Build | -11 -10 -9 -9 ------- Run | Yrd Mat Mat Sto Slots Evolved 2 | . . 2 . Power . | . . . . Propulsion 1 | . . 1 . Utility 1 | . . 1 . Weapon . | . . . . Parts Attached 31 | 6 9 13 3 Power 2 | 1 . 1 . Engine 2 | 1 . 1 . Core . | . . . . Reactor . | . . . . Propulsion 14 | 2 5 5 2 Treads 2 | . . 2 . Leg 4 | . . 2 2 Wheel 6 | 2 3 1 . Hover . | . . . . Flight 2 | . 2 . . Utility 7 | 1 2 3 1 Device 3 | . 1 2 . Storage 2 | 1 1 . . Processor 2 | . . 1 1 Hackware . | . . . . Protection . | . . . . Artifact . | . . . . Weapon 8 | 2 2 4 . Energy Gun 1 | . 1 . . Energy Cannon . | . . . . Ballistic Gun 5 | 2 1 2 . Ballistic Cannon 2 | . . 2 . Launcher . | . . . . Special Weapon . | . . . . Impact Weapon . | . . . . Slashing Weapon . | . . . . Piercing Weapon . | . . . . Special Melee Weapon . | . . . . Unidentified Prototypes 2 | . . 2 . Parts Lost 5 | . . 4 1 Power . | . . . . Propulsion 3 | . . 3 . Utility . | . . . . Weapon 2 | . . 1 1 Highest Loss Streak 2 | . . 2 1 To Critical Strikes . | . . . . Average Slot Usage (%) 72 | . 99 69 66 Engine 11 | . 14 11 11 Wheel 6 | . 27 5 . Device 8 | . 12 9 4 Storage 12 | . 15 13 11 Processor 11 | . . 10 17 Ballistic Gun 13 | . 25 11 11 Ballistic Cannon 7 | . . 8 9 Naked Turns . | . . . . Heaviest Build 97 | 14 95 97 97 Greatest Support 40 | 20 26 40 20 Greatest Overweight (x) 32 | 2 3 32 32 Average Overweight (x) 7 | . 1 12 22 Largest Inventory Capacity 25 | 8 25 25 25 Average Capacity 22 | 5 9 25 25 Most Carried 12 | . 5 10 12 Average Carried 8 | . 3 8 10 Final Capacity 25 | 8 25 25 25 Final Carried 11 | . 5 10 11 Class Distribution -------------------- 100% | Mutant Dominant Class ---------------- Mutant | -10/Materials Mutant | -9/Materials Mutant | -9/Storage Resources | -11 -10 -9 -9 ----------- Run | Yrd Mat Mat Sto Matter Collected 834 | 157 175 350 152 Remotely . | . . . . Salvage Created 639 | . 50 457 132 Parts 53 | . 4 38 11 Haulers Intercepted 1 | . . 1 . Recyclers Shooed 1 | . 1 . . Parts Field Recycled 11 | . 11 . . Retrieved Matter 67 | . 67 . . Parts Self-Destructed . | . . . . Prevented . | . . . . Kills | -11 -10 -9 -9 ------- Run | Yrd Mat Mat Sto Combat Hostiles Destroyed 18 | . 3 12 3 Guns 12 | . 3 7 2 Cannons 6 | . . 5 1 Classes Destroyed 6 | . 1 4 1 Worker 2 | . . . 2 Hauler 1 | . . 1 . Watcher 2 | . . 2 . Swarmer 6 | . 3 3 . Grunt 9 | . . 6 3 Sentry 3 | . . 3 . Best Kill Streak 4 | . 3 4 1 Combat Bots Only 4 | . 3 4 1 Max Kills in Single Turn 1 | . 1 1 1 Gunslinging . | . . . . Exploded . | . . . . Melee . | . . . . Uniques/NPCs Destroyed . | . . . . Combat | -11 -10 -9 -9 -------- Run | Yrd Mat Mat Sto Hostile Shots Fired 159 | . 14 103 42 Missed 49 | . 4 32 13 Damage Taken 1219 | . 81 770 368 Core 306 | . 13 177 116 Absorbed by Shields . | . . . . Core Remaining (%) 97 | 100 94 . . Volleys Fired 73 | . 13 45 15 Largest 2 | . 2 2 2 Hottest 76 | . 40 76 62 Shots Fired 128 | . 18 89 21 Gun 93 | . 18 62 13 Cannon 35 | . . 27 8 Launcher . | . . . . Special . | . . . . Kinetic 122 | . 18 83 21 Thermal 6 | . . 6 . Explosive . | . . . . Electromagnetic . | . . . . Robot Hit Streak 11 | . 3 11 6 Robot Miss Streak 7 | . 2 7 4 Penetration Max . | . . . . Secondary Targets 2 | . 1 1 . Max Gunslinging Chain 1 | . 1 1 . Shots Hit Robots 83 | . 8 60 15 Core Hits 39 | . 5 26 8 Critical Kills . | . . . . Critical Parts Destroyed . | . . . . Critical Strikes 4 | . . 3 1 Burn 1 | . . 1 . Blast 3 | . . 2 1 Melee Attacks . | . . . . Impact . | . . . . Slashing . | . . . . Piercing . | . . . . Sneak Attacks . | . . . . Combat Hostiles . | . . . . Follow-up Attacks . | . . . . Damage Inflicted 1324 | . 112 968 244 Guns 861 | . 112 612 137 Cannons 463 | . . 356 107 Explosions . | . . . . Melee . | . . . . Ramming . | . . . . Kinetic 1236 | . 112 880 244 Thermal 88 | . . 88 . Explosive . | . . . . Electromagnetic . | . . . . Impact . | . . . . Slashing . | . . . . Piercing . | . . . . Highest Corruption . | . . . . Average Corruption . | . . . . Corruption Purged . | . . . . Corruption Blocked . | . . . . Overload Shots . | . . . . Overflow Damage . | . . . . Projectiles . | . . . . Explosions . | . . . . Melee . | . . . . Knockbacks 7 | . . 4 3 Impact . | . . . . Kinetic 7 | . . 4 3 Secondary . | . . . . Self-Inflicted Damage . | . . . . Shots . | . . . . Rammed . | . . . . Targets Rammed . | . . . . Kicked . | . . . . Crushed . | . . . . Highest Temperature 78 | . . 78 15 Average Temperature 27 | . . 33 9 Received Heat Transfer 468 | . . 285 183 Siege Activations . | . . . . Robots Corrupted . | . . . . Combat Hostiles . | . . . . Parts Fried . | . . . . Impact Corruptions . | . . . . Robots Melted . | . . . . Combat Hostiles . | . . . . Parts Melted . | . . . . Heat Transferred 296 | . . 296 . Parts Sabotaged . | . . . . Parts Stolen . | . . . . Parts Stripped . | . . . . Power Chain Reactions . | . . . . Alert | -11 -10 -9 -9 ------- Run | Yrd Mat Mat Sto Peak Influence 142 | . 119 142 85 Initial 5 | . . . 5 Average 41 | . 59 61 9 Maximum Alert Level . | . . . . Low Security (%) 100 | 100 100 100 100 Level 1 . | . . . . Level 2 . | . . . . Level 3 . | . . . . Level 4 . | . . . . Level 5 . | . . . . High Security . | . . . . Max Security . | . . . . Squads Dispatched 4 | . 1 2 1 Investigation 1 | . . 1 . Extermination . | . . . . Reinforcement 3 | . 1 1 1 Assault . | . . . . Garrison . | . . . . Intercept . | . . . . Searches Triggered . | . . . . Construction Impeded . | . . . . Haulers Reinforced . | . . . . Active Scanning Responses . | . . . . Cargo Convoy Interrupts . | . . . . Stealth | -11 -10 -9 -9 --------- Run | Yrd Mat Mat Sto Distress Signals 3 | . . 2 1 Communications Jammed . | . . . . Distress Signals . | . . . . Times Spotted 34 | . 8 20 6 Peak Tracking Total 7 | . 5 5 7 Tactical Retreats . | . . . . Traps | -11 -10 -9 -9 ------- Run | Yrd Mat Mat Sto Traps Triggered 2 | . 1 1 . Indirectly . | . . . . Trap Hack Attempts . | . . . . Triggered . | . . . . Disarmed . | . . . . Reprogrammed . | . . . . Reused . | . . . . Traps Extracted . | . . . . Installed . | . . . . Triggered . | . . . . Machines | -11 -10 -9 -9 ---------- Run | Yrd Mat Mat Sto Machines Disabled . | . . . . Max in Single Turn . | . . . . Machines Repaired . | . . . . Machines Dismantled . | . . . . Machines Sabotaged . | . . . . Overloaded Fab Kills . | . . . . Hacking | -11 -10 -9 -9 --------- Run | Yrd Mat Mat Sto Machines Accessed 1 | . 1 . . Terminals 1 | . 1 . . Fabricators . | . . . . Repair Stations . | . . . . Recycling Units . | . . . . Scanalyzers . | . . . . Garrison Access . | . . . . Total Hacks 2 | . 2 . . Successful 2 | . 2 . . Failed . | . . . . Catastrophic . | . . . . Database Lockouts . | . . . . Manual . | . . . . Terminals 2 | . 2 . . Fabricators . | . . . . Repair Stations . | . . . . Recycling Units . | . . . . Scanalyzers . | . . . . Garrison Access . | . . . . Terminal Hacks 2 | . 2 . . Emergency Access Points 1 | . 1 . . Maintenance Status 1 | . 1 . . Fabricator Hacks . | . . . . Repair Station Hacks . | . . . . Recycling Unit Hacks . | . . . . Scanalyzer . | . . . . Garrison Access Hacks . | . . . . Unauthorized Hacks . | . . . . Terminals . | . . . . Fabricators . | . . . . Repair Stations . | . . . . Recycling Units . | . . . . Scanalyzers . | . . . . Garrison Access . | . . . . Data Cores Recovered . | . . . . Used . | . . . . Hacking Detections 1 | . 1 . . Full Trace Events . | . . . . Feedback Events . | . . . . Feedback Blocked . | . . . . Robot Schematics Acquired . | . . . . Robots Built . | . . . . Authchips . | . . . . Time . | . . . . Total Robot Build Rating . | . . . . Part Schematics Acquired . | . . . . Parts Built . | . . . . Authchips . | . . . . Time . | . . . . Total Part Build Rating . | . . . . Parts Repaired . | . . . . Time . | . . . . Parts Recycled . | . . . . Recycled Matter . | . . . . Retrieved Matter . | . . . . Retrieved Components . | . . . . Parts Scanalyzed . | . . . . Part Schematics Acquired . | . . . . Parts Damaged . | . . . . Bothacking | -11 -10 -9 -9 ------------ Run | Yrd Mat Mat Sto Used RIF Installer . | . . . . Robots Hacked . | . . . . Non-combat . | . . . . Combat . | . . . . Robot Hacks Applied . | . . . . Relay Couplers Released . | . . . . Fabnet Peak Effective % . | . . . . Robots Rewired . | . . . . Allies Hacked . | . . . . Hacks Repelled . | . . . . Allies | -11 -10 -9 -9 -------- Run | Yrd Mat Mat Sto Total Allies . | . . . . Largest Group . | . . . . Highest-Rated Group . | . . . . Highest-Rated Ally . | . . . . Total Orders . | . . . . Ally Attacks . | . . . . Total Damage . | . . . . Kills . | . . . . Allies Corrupted . | . . . . Allies Melted . | . . . . Intel | -11 -10 -9 -9 ------- Run | Yrd Mat Mat Sto Robot Analysis Total . | . . . . Derelict Logs Recovered . | . . . . Drone Launches . | . . . . Drone Recoveries . | . . . . Exploration | -11 -10 -9 -9 ------------- Run | Yrd Mat Mat Sto Turns Passed 3086 | 72 412 1471 1131 Spaces Moved 721 | 63 311 259 88 Core 151 | 36 . 56 59 Treads 1 | . . 1 . Legs 29 | . . . 29 Wheels 540 | 27 311 202 . Hover . | . . . . Flight . | . . . . Fastest Speed 50 | 50 80 116 400 Average Speed 385 | 100 104 503 1236 Slowest Speed 1650 | 150 135 1650 1650 Overloaded Moves . | . . . . Propulsion Burnouts . | . . . . Robots Hopped . | . . . . Cave-ins Triggered . | . . . . Exploration Rate (%) 18 | 4 29 18 22 Regions Visited 3 Branch Regions 1 Pre-discovered Areas . | . . . . Known Exits Taken . | . . . . Unknown Exits Taken 3 | 1 1 1 . Scrap Searched . | . . . . Spaces Dug . | . . . . Terrain Destroyed 1 | . . 1 . Melee . | . . . . Projectile 1 | . . 1 . AOE . | . . . . Terrain Rammed . | . . . . Walls Destroyed . | . . . . Machines Disabled . | . . . . Actions | -11 -10 -9 -9 --------- Run | Yrd Mat Mat Sto Total 908 | 68 378 353 109 Wait 45 | . 31 14 . Move 718 | 62 310 258 88 Hop . | . . . . Pick Up 29 | . 11 15 3 Fast Attach 6 | 6 . . . Attach 11 | . 2 7 2 Detach . | . . . . Swap 15 | . 7 7 1 Drop 11 | . 4 7 . Fire 73 | . 13 45 15 Melee . | . . . . Ram . | . . . . Kick . | . . . . Crush . | . . . . Escape Stasis . | . . . . Rewire . | . . . . Trap . | . . . . Miscellaneous . | . . . . Route ------- -11/Scrapyard -10/Materials -9/Materials -9/Storage History --------- Turn | Location | Event 18 | -11/Scrapyard | Discovered new exit (range 15) 73 | -11/Scrapyard | Entered Materials 318 | -10/Materials | Build established: Mutant 424 | -10/Materials | Discovered new exit (range 12) 485 | -10/Materials | Entered another Materials area 485 | -9/Materials | Evolved 2 slots: Propulsion x1, Utility x1 1491 | -9/Materials | Discovered new exit (range 8) 1956 | -9/Materials | Entered Storage 2893 | -9/Storage | Core integrity fell below 50% 3087 | -9/Storage | Self-destructed Last Messages --------------- 02631_ R-06 Scavenger collects Sml. Matter Pod. 02657_ K-01 Serf collects debris. 02720_ Acquired 7 matter. 02736_ U-05 Engineer knocked back. 02883_ G-47 Trooper knocked back. 02886_ G-47 Trooper Lgt. Nuclear Core blasted off. 02886_ G-47 Trooper knocked back. 02889_ G-47 Trooper destroyed. 02911_ Imp. Light Cannon destroyed. 02926_ G-34 Mercenary destroyed. 02943_ Acquired Aluminum Leg. 02960_ Acquired 41 matter. 02975_ Acquired Aluminum Leg. 02988_ K-01 Serf collects debris. 02997_ Acquired 2 matter. 03059_ W-16 Scout sends out distress signal. 03083_ ALERT: Hostiles spotted, dispatching reinforcements to Terminal S016. 03085_ G-34 Mercenary destroyed. 03087_ K-01 Serf collects debris. Map ----- +----------------------------------------------------+ | ????????????????????????????????????????? | | ????????????????????????????????????????? | | ????????????????????????????????????????? | | ????????????????????????????????????????? | | ????????????????????????????????????????? | | ????????????????????????????????????????? | | ????????????????????????????????????????? | | ????????????????????????????????????????? | | ????????????????????????????????????????? | | ????????????????????????????????????????? | | ??????????? ???????????????????????????? | | ??????????? ???????????????????????????? | | ???????? ?#^ ???????????????????????????? | | ????????"?+ ???????????????????????????? | | ???????"" # #??????????????????????????? | | ????????" # #??????????????????????????? | | ???????? # #??????????????????????????? | | ????????#/# #??????????????????????????? | | ????????# ##???????####??????????????? | | ????????# ??????? ???????????????? | | ????????# ??????T ?????????????????? | | ????????# #????? ??????????????????? | | ??????### #?####/#####???????????????? | | ??????# #?# u #???????????????? | | ??????# ### =""" #???????????????? | | ??????# Y k@ *% G" #???????????????? | | ??????+ # =""" #??????????????? | | ??????# ^# Y ##??????????????? | | ??????# + """ #???????????????? | | ??????# ### """ #???????????????? | | ??????# #?# """ #???????????????? | | ####### #?# #???????????????? | | # # ##+############???????????????? | | # # # #???????????????????? | | # # # #???????????????????? | | # # # #???????????????????? | | # # *# #???????????????????? | | # + +*% #???????????????????? | | # # [#%! #???????????????????? | | # # # #???????????????????? | | # # # #???????????????????? | | # # ###########???????????????????? | | # # #?????????????????????????????? | | # # #?????????????????????????????? | | ####### #?????????????????????????????? | | # # #?????????????????????????????? | | # # #?????????????????????????????? | | # + #?????????????????????????????? | | # # #?????????????????????????????? | | # % # #?????????????????????????????? | +----------------------------------------------------+ Best States ------------- Heat Dissipation 50 Energy Generation 14 Energy Capacity 280 Matter Stores 300 Matter Capacity 300 Sight Range 18 Terrain Scan Density 10 Evasion (%) 44 Item Schematics ----------------- None Robot Schematics ------------------ None Fabricated ------------ Nothing Alien Tech Used ----------------- None Achievements -------------- None Challenges ------------ None Game ------ Seed AccelerationIonicMachine Manual? 0 Play Time 00:13:09 Cumulative 4.0 hours Start 2024.03.31 @ 16:59:33 End 2024.03.31 @ 19:12:18 Sessions 1 Manual Loads 0 Difficulty Rogue Special Mode None Game No. 14 Rogue 14 Adventurer 0 Explorer 0 Win Type - Total 0 Types 0/0/0/0/0/0/0/0/0 Lore% 3 Gallery% 13 Achievement% 12 Wizard Run 0 Options --------- Layout 0 ASCII 0 Keyboard 0 Movement Arrows Keybinds 0 Fullscreen 1 Font 18/SmallcapsGlow Map View 76x50 Zoom Use 0% Tactical HUD 1 Map Filters NONE Filters NONE Steam 1 RUN: db5a8c98-eaf1-465c-a34b-81d77404f293